Cogmind - Beta 12 --- EXPLORER MODE // 2023.07.29 @ 00:19:26 Player: Olexender Result: Destroyed by G-50 Soldier with Heavy Laser Performance ------------- Evolutions (5) 2500 Regions Visited (7) 1400 Robots Destroyed (334) 1670 Value Destroyed (13084) 13084 Prototype IDs (25) 500 Alien Tech Used (0) 0 Bonus (1022) 1022 TOTAL SCORE: 20176 Bonus ------- High Alert Combat Kills 34 Follower Combat Kills 1077 Friendly Fire -89 Cogmind --------- Core Integrity 0/1000 Matter 290/300 Energy 2/100 System Corruption 13% Temperature Cool (9) Movement Hovering (61) Location -5/Factory Parts ------- > --- POWER (2) -------- (None) > --- PROPULSION (7) --- Antigrav System Gyrokinetic Inverter > --- UTILITY (7) ------ Advanced Heat Sink Force Field > --- WEAPON (2) ------- Variable Charge Gun > --- INVENTORY (5) ---- Carbon-fiber Leg Advanced ECM Suite Improved Focal Shield High-powered Tractor Beam Peak State ------------ > --- POWER ------------ Neutrino Core Neutrino Core > --- PROPULSION ------- Armored Leg Armored Leg Armored Leg Improved VSS Leg Improved VSS Leg Improved VSS Leg Experimental Flexi-carbon Leg > --- UTILITY ---------- Advanced Cooling System Huge Storage Unit Advanced Sensor Array Advanced Signal Interpreter Weapon Mount Precision Energy Filter Force Field > --- WEAPON ----------- Advanced Plasma Cannon Mass Driver > --- INVENTORY -------- Micro Fission Core Micro Fission Core Flexi-carbon Leg Improved Cooling System High-capacity Storage Unit Energy Well Matter Compressor Advanced Weight Redist. System Structural Scanner Machine Analyzer Matter Filter Improved Kinecellerator Advanced ECM Suite Hardened Medium Armor Plating Hardened Medium Armor Plating Force Field Force Field Point Defense System Advanced Field Recycling Unit Tesla Rifle KE Penetrator KE Penetrator Mini Assault Cannon Long-range Missile Launcher Heavy Pick [Rating: 107] Favorites ----------- Power Heavy Deuterium Engine Engine Heavy Deuterium Engine Power Core Fission Core Reactor Fusion Reactor Propulsion Armored Leg Leg Armored Leg Wheel Armored Wheel Hover Unit Gyrokinetic Inverter Flight Unit Nuclear Pulse Array Utility Improved Cooling System Device Improved Cooling System Storage Huge Storage Unit Processor Advanced Signal Interpreter Hackware System Shield Protection Improved Medium Armor Plating Weapon Mini Assault Cannon Energy Gun Improved Heavy Laser Energy Cannon Heavy Plasma Cannon Ballistic Gun Autogun Ballistic Cannon Mini Assault Cannon Launcher Long-range Missile Launcher Special Weapon Plasma Cutter Slashing Weapon Mining Claw Piercing Weapon Heavy Pick Build | -11 -10 -9 -9 -8 -7 -6 -5 ------- Run | Jun Mat Mat Sto Mat Fac Fac Fac Slots Evolved 11 | . 1 2 . 2 2 2 2 Power 1 | . 1 . . . . . . Propulsion 5 | . . 1 . 1 1 1 1 Utility 5 | . . 1 . 1 1 1 1 Weapon . | . . . . . . . . Parts Attached 312 | 7 4 13 24 29 47 60 128 Power 32 | 1 1 3 1 5 3 7 11 Engine 14 | 1 1 3 1 5 2 . 1 Core 16 | . . . . . 1 6 9 Reactor 2 | . . . . . . 1 1 Propulsion 78 | 2 1 5 8 9 13 16 24 Treads . | . . . . . . . . Leg 67 | 2 1 5 5 8 13 16 17 Wheel 4 | . . . 3 1 . . . Hover 5 | . . . . . . . 5 Flight 2 | . . . . . . . 2 Utility 112 | 2 . 3 1 9 14 28 55 Device 82 | 1 . 2 1 6 6 20 46 Storage 5 | 1 . . . . 2 1 1 Processor 2 | . . . . . 1 . 1 Hackware 4 | . . . . . 1 2 1 Protection 19 | . . 1 . 3 4 5 6 Artifact . | . . . . . . . . Weapon 90 | 2 2 2 14 6 17 9 38 Energy Gun 24 | 1 . 1 2 2 2 2 14 Energy Cannon 13 | . . . . . 4 4 5 Ballistic Gun 22 | 1 2 1 7 3 2 . 6 Ballistic Cannon 17 | . . . . . 8 3 6 Launcher 1 | . . . . . . . 1 Special Weapon 1 | . . . . . . . 1 Impact Weapon . | . . . . . . . . Slashing Weapon 8 | . . . 5 1 1 . 1 Piercing Weapon 4 | . . . . . . . 4 Special Melee Weapon . | . . . . . . . . Unidentified Prototypes 19 | . . 1 1 2 6 3 6 Corrupted Parts 1 | . . . . . . . 1 System Corruption 4 | . . . . . . . 4 Parts Lost 55 | . . 3 2 . 1 2 47 Power 5 | . . . . . . . 5 Propulsion 21 | . . 2 1 . . . 18 Utility 20 | . . 1 . . 1 2 16 Weapon 9 | . . . 1 . . . 8 Highest Loss Streak 13 | . . 3 1 . 1 1 13 To Critical Strikes 3 | . . 1 . . . 1 1 Average Slot Usage (%) 97 | . 98 99 99 99 99 99 86 Engine 8 | . 23 20 20 16 13 2 . Core 4 | . . . . . . 9 7 Leg 33 | . 25 29 20 32 34 37 31 Device 19 | . 12 16 10 15 13 23 22 Storage 6 | . 12 10 10 8 7 6 4 Hackware 1 | . . . . . 5 1 . Protection 5 | . . 3 10 7 8 5 3 Energy Gun 3 | . 3 8 9 8 2 . 2 Energy Cannon 3 | . . . . . 4 6 1 Ballistic Gun 3 | . 21 11 9 7 . . 1 Ballistic Cannon 4 | . . . . . 6 6 3 Naked Turns 43 | . . . . . . . 43 Heaviest Build 148 | 20 27 45 47 54 79 140 148 Greatest Support 141 | 20 23 33 36 58 90 110 141 Greatest Overweight (x) 4 | . 1 1 3 1 . 1 4 Average Overweight (x) . | . . . 1 . . . . Largest Inventory Capacity 25 | 10 10 10 10 10 15 25 25 Average Capacity 18 | 7 10 10 10 10 14 24 21 Most Carried 25 | 5 9 10 10 10 15 25 25 Average Carried 16 | 1 5 8 9 9 14 22 19 Final Capacity 25 | 10 10 10 10 10 15 25 5 Final Carried 24 | . 9 9 10 10 15 24 4 Class Distribution -------------------- 88% | Hacker-Mutant 5% | Scavenger-Mutant Dominant Class ---------------- Hacker-Mutant | -10/Materials Hacker-Mutant | -9/Materials Hacker-Mutant | -9/Storage Hacker-Mutant | -8/Materials Hacker-Mutant | -7/Factory Hacker-Mutant | -6/Factory Hacker-Mutant | -5/Factory Resources | -11 -10 -9 -9 -8 -7 -6 -5 ----------- Run | Jun Mat Mat Sto Mat Fac Fac Fac Matter Collected 8590 | 195 199 636 545 632 1362 1952 3069 Remotely . | . . . . . . . . Salvage Created 14591 | . 273 1392 1116 1376 1809 3549 5076 Parts 826 | . 27 94 76 75 136 174 244 Haulers Intercepted 7 | . . 1 2 . 2 1 1 Recyclers Shooed 8 | . . 1 . 1 1 2 3 Parts Field Recycled 30 | . . . . . 3 7 20 Retrieved Matter 528 | . . . . . 80 89 359 Parts Self-Destructed . | . . . . . . . . Prevented . | . . . . . . . . Kills | -11 -10 -9 -9 -8 -7 -6 -5 ------- Run | Jun Mat Mat Sto Mat Fac Fac Fac Combat Hostiles Destroyed 273 | . 8 27 21 25 39 62 91 Melee 1 | . . . . . . . 1 Guns 125 | . 8 27 21 24 9 . 36 Cannons 133 | . . . . . 27 57 49 AOE 7 | . . . . . 3 1 3 Classes Destroyed 17 | . 3 6 . 1 3 1 3 Worker 19 | . . 1 1 1 2 3 11 Builder 12 | . . . . . 4 4 4 Tunneler 1 | . . . . . 1 . . Hauler 7 | . . 1 2 . 2 1 1 Recycler 8 | . . 1 . . . 3 4 Mechanic 1 | . . . . . . . 1 Operator 8 | . . 1 1 1 2 3 . Watcher 27 | . 3 5 2 4 5 3 5 Swarmer 47 | . 4 6 2 2 6 7 20 Grunt 106 | . 4 10 7 8 14 28 35 Brawler 5 | . . 1 . 1 . 2 1 Duelist 4 | . . . . . . 1 3 Sentry 57 | . . 10 12 10 7 12 6 Specialist 4 | . . . . . . . 4 Hunter 15 | . . . . 4 3 4 4 Programmer 33 | . . . . . 9 8 16 Heavy 2 | . . . . . . . 2 Best Kill Streak 10 | . 3 4 10 4 4 6 9 Combat Bots Only 9 | . 2 3 9 3 4 6 8 Max Kills in Single Turn 5 | . 1 2 1 2 3 2 5 Gunslinging . | . . . . . . . . Exploded 2 | . . . . . 2 1 2 Melee 1 | . . . . . . . 1 Uniques/NPCs Destroyed . | . . . . . . . . Combat | -11 -10 -9 -9 -8 -7 -6 -5 -------- Run | Jun Mat Mat Sto Mat Fac Fac Fac Damage Taken 11905 | . 197 666 631 424 1308 1822 6857 Core 1610 | . 38 63 111 64 126 208 1000 Absorbed by Shields 4525 | . . . . 182 498 1613 2232 Regen/Repaired (Parts) 881 | . . 84 . 179 337 273 8 Core Remaining (%) 80 | 100 84 . 56 88 82 75 . Volleys Fired 1029 | . 22 89 77 94 125 214 408 Largest 2 | . 2 2 2 2 2 2 2 Hottest 155 | . 70 79 88 93 128 138 155 Shots Fired 1839 | . 44 182 139 183 238 414 639 Gun 899 | . 44 182 139 183 101 . 250 Cannon 926 | . . . . . 137 414 375 Launcher 4 | . . . . . . . 4 Special 10 | . . . . . . . 10 Kinetic 1040 | . 33 119 77 94 125 216 376 Thermal 764 | . 11 63 62 89 113 198 228 Explosive 4 | . . . . . . . 4 Electromagnetic 31 | . . . . . . . 31 Robot Hit Streak 75 | . 8 27 34 26 29 27 75 Robot Miss Streak 5 | . 2 3 2 2 2 5 2 Penetration Max 1 | . . . . 1 1 . 1 Secondary Targets 9 | . 1 4 1 2 1 . . Max Gunslinging Chain 1 | . 1 1 1 1 1 . . Shots Hit Robots 1394 | . 31 135 99 149 180 307 493 Core Hits 587 | . 14 56 42 51 81 129 214 Critical Kills 8 | . . . . 1 . 3 4 Critical Parts Destroyed 8 | . . . 1 . . . 7 Critical Strikes 65 | . . 6 2 4 10 14 29 Burn 18 | . . 6 1 3 4 . 4 Meltdown 4 | . . . . . . 3 1 Destroy 13 | . . . 1 1 . . 11 Blast 27 | . . . . . 6 11 10 Corrupt 1 | . . . . . . . 1 Sever 2 | . . . . . . . 2 Melee Attacks 24 | . . . 9 3 1 . 11 Impact . | . . . . . . . . Slashing 19 | . . . 9 3 1 . 6 Piercing 5 | . . . . . . . 5 Sneak Attacks . | . . . . . . . . Combat Hostiles . | . . . . . . . . Follow-up Attacks . | . . . . . . . . Damage Inflicted 37640 | . 434 2063 1626 3297 5678 9645 14897 Guns 14456 | . 434 2060 1626 3244 1926 . 5166 Cannons 21084 | . . . . . 3022 9270 8792 Explosions 1904 | . . . . . 726 364 814 Melee 115 | . . . . . . . 115 Ramming 81 | . . 3 . 53 4 11 10 Kinetic 19061 | . 307 1312 787 1334 2589 4393 8339 Thermal 16277 | . 127 748 839 1910 2359 5146 5148 Explosive 1454 | . . . . . 726 . 728 Electromagnetic 652 | . . . . . . 95 557 Impact . | . . . . . . . . Slashing 70 | . . . . . . . 70 Piercing 45 | . . . . . . . 45 Highest Corruption 13 | . . 4 5 . 1 4 13 Average Corruption 3 | . . 3 4 . 1 2 3 Corruption Purged 21 | . . . . . 2 6 13 Corruption Blocked . | . . . . . . . . Effects 162 | . . 17 37 . 2 34 72 Message Errors 35 | . . 1 10 . 1 4 19 Matter Fused 41 | . . 7 11 . . 9 14 Heat Flow Errors 18 | . . 2 4 . 1 5 6 Energy Discharges 20 | . . . 5 . . 6 9 Parts Rejected 2 | . . . . . . . 2 Data Loss (minor) 21 | . . 2 3 . . 5 11 Data Loss (major) 5 | . . . . . . 2 3 Misfires 11 | . . 4 1 . . 2 4 Alerts 3 | . . 1 . . . 1 1 Weapon Failures 6 | . . . 3 . . . 3 Overload Shots . | . . . . . . . . Overflow Damage 528 | . . . . 2 108 199 219 Projectiles 376 | . . . . . 43 179 154 Explosions 150 | . . . . . 65 20 65 Melee 2 | . . . . 2 . . . Knockbacks 91 | . . . . . 12 38 41 Impact . | . . . . . . . . Kinetic 79 | . . . . . 11 32 36 Secondary 12 | . . . . . 1 6 5 Self-Inflicted Damage 193 | . . . . . 94 27 72 Shots 6 | . . . . . 2 1 3 Rammed . | . . . . . . . . Targets Rammed 11 | . . 2 . 5 1 2 1 Kicked 11 | . . 2 . 5 1 2 1 Crushed . | . . . . . . . . Highest Temperature 258 | . 241 185 237 12 248 227 258 Average Temperature 39 | . 72 23 39 8 31 25 56 Received Heat Transfer 4543 | . 123 318 414 264 387 829 2208 Siege Activations . | . . . . . . . . Robots Corrupted 1 | . . . . . . . 1 Combat Hostiles 1 | . . . . . . . 1 Parts Fried 7 | . . . 3 . . 2 2 Impact Corruptions 2 | . . . . 1 . . 1 Robots Melted 6 | . . . . 1 . 4 1 Combat Hostiles 6 | . . . . 1 . 4 1 Parts Melted 36 | . 1 7 2 5 3 12 6 Heat Transferred 27379 | . 370 2368 1813 2997 3942 7900 7989 Parts Sabotaged . | . . . . . . . . Parts Stolen . | . . . . . . . . Parts Stripped . | . . . . . . . . Power Chain Reactions 1 | . . . . . . . 1 Missiles Intercepted . | . . . . . . . . Alert | -11 -10 -9 -9 -8 -7 -6 -5 ------- Run | Jun Mat Mat Sto Mat Fac Fac Fac Peak Influence 434 | . 157 347 346 341 348 304 434 Initial 3 | . . . 3 . 3 . . Average 86 | . 46 107 114 112 74 60 126 Maximum Alert Level 2 | . . 1 1 1 1 1 2 Low Security (%) 87 | 100 100 81 77 84 90 95 74 Level 1 11 | . . 18 22 15 9 4 23 Level 2 . | . . . . . . . 1 Level 3 . | . . . . . . . . Level 4 . | . . . . . . . . Level 5 . | . . . . . . . . High Security . | . . . . . . . . Max Security . | . . . . . . . . Squads Dispatched 78 | . 1 1 3 4 14 28 27 Investigation 24 | . 1 . . 1 4 13 5 Extermination 24 | . . . . . 8 8 8 Reinforcement 23 | . . 1 2 2 2 6 10 Assault 1 | . . . . . . . 1 Garrison 6 | . . . 1 1 . 1 3 Intercept . | . . . . . . . . Searches Triggered . | . . . . . . . . Construction Impeded 8 | . . . . . 1 3 4 Haulers Reinforced 2 | . . . . . . 2 . Active Scanning Responses . | . . . . . . . . Cargo Convoy Interrupts 1 | . . . . . . . 1 Stealth | -11 -10 -9 -9 -8 -7 -6 -5 --------- Run | Jun Mat Mat Sto Mat Fac Fac Fac Distress Signals 16 | . . 3 2 1 3 4 3 Communications Jammed . | . . . . . . . . Distress Signals . | . . . . . . . . Times Spotted 406 | . 11 38 27 37 55 102 136 Peak Tracking Total 9 | . 3 4 7 3 4 6 9 Tactical Retreats 21 | . . 1 . 1 . 3 16 Traps | -11 -10 -9 -9 -8 -7 -6 -5 ------- Run | Jun Mat Mat Sto Mat Fac Fac Fac Traps Triggered 21 | . 1 2 3 . 5 3 7 Indirectly . | . . . . . . . . Trap Hack Attempts . | . . . . . . . . Triggered . | . . . . . . . . Disarmed 16 | . 3 6 . 1 . . 6 Reprogrammed 44 | . . . 10 6 6 18 4 Reused 7 | . . . 2 1 2 2 . Traps Extracted . | . . . . . . . . Installed . | . . . . . . . . Triggered 9 | . . . 2 1 2 2 2 Machines | -11 -10 -9 -9 -8 -7 -6 -5 ---------- Run | Jun Mat Mat Sto Mat Fac Fac Fac Machines Disabled 48 | . . . 4 3 9 23 9 Max in Single Turn 6 | . . . 1 1 2 6 3 Garrison Access 7 | . . . 1 1 1 3 1 Machines Repaired . | . . . . . . . . Machines Sabotaged . | . . . . . . . . Overloaded Fab Kills . | . . . . . . . . Hacking | -11 -10 -9 -9 -8 -7 -6 -5 --------- Run | Jun Mat Mat Sto Mat Fac Fac Fac Machines Accessed 131 | . 10 14 11 15 26 42 13 Terminals 75 | . 8 11 9 9 12 19 7 Fabricators 12 | . . . . . 5 5 2 Repair Stations 13 | . . 1 . 2 3 5 2 Recycling Units 15 | . 2 1 1 1 2 6 2 Scanalyzers 10 | . . 1 . 2 3 4 . Garrison Access 6 | . . . 1 1 1 3 . Total Hacks 400 | . 35 42 28 42 96 121 36 Successful 291 | . 27 40 19 34 61 84 26 Failed 109 | . 8 2 9 8 35 37 10 Catastrophic 7 | . . . . . 1 6 . Database Lockouts . | . . . . . . . . Manual 125 | . 12 11 13 13 29 33 14 Terminals 254 | . 31 37 26 29 53 55 23 Fabricators 43 | . . . . . 17 19 7 Repair Stations 34 | . . 2 . 5 7 16 4 Recycling Units 19 | . 4 1 1 1 2 8 2 Scanalyzers 41 | . . 2 . 6 16 17 . Garrison Access 9 | . . . 1 1 1 6 . Terminal Hacks 111 | . 16 24 12 12 20 18 9 Record 27 | . 5 10 1 2 5 1 3 Part Schematic 11 | . . . 2 . 4 3 2 Robot Schematic 3 | . . . . . 2 1 . Robot Analysis 2 | . 1 . . 1 . . . Prototype ID Bank 3 | . 2 1 . . . . . Open Door 4 | . . . 4 . . . . Open DSF 7 | . . . . . 2 4 1 Level Access Points 2 | . 1 . . 1 . . . Branch Access Points 4 | . 1 1 . 1 1 . . Emergency Access Points 5 | . . 4 . . 1 . . Repair Station Index 2 | . . 1 . . . . 1 Unreport Threat 13 | . 2 1 2 2 2 4 . Disarm Traps 4 | . 1 1 . 1 . . 1 Reprogram Traps 9 | . . . 2 1 2 3 1 Patrol Status 1 | . 1 . . . . . . Recall Investigation 2 | . 1 1 . . . . . Registered Components 1 | . . 1 . . . . . Zone Layout 11 | . 1 3 1 3 1 2 . Fabricator Hacks 33 | . . . . . 13 14 6 Network Status 3 | . . . . . 1 2 . Load Schematic 16 | . . . . . 6 7 3 Build 14 | . . . . . 6 5 3 Repair Station Hacks 30 | . . 2 . 4 4 16 4 Scan Component 16 | . . 1 . 2 2 9 2 Repair 14 | . . 1 . 2 2 7 2 Recycling Unit Hacks 15 | . 3 1 1 1 2 6 1 Report Inventory 14 | . 2 1 1 1 2 6 1 Retrieve Components 1 | . 1 . . . . . . Scanalyzer 31 | . . 2 . 6 11 12 . Insert Component 16 | . . 1 . 3 6 6 . Analyze 15 | . . 1 . 3 5 6 . Garrison Access Hacks 6 | . . . 1 1 1 3 . Seal Access 6 | . . . 1 1 1 3 . Unauthorized Hacks 65 | . 8 11 5 10 10 15 6 Terminals 65 | . 8 11 5 10 10 15 6 Assimilate 1 | . . . . 1 . . . Botnet 64 | . 8 11 5 9 10 15 6 Fabricators . | . . . . . . . . Repair Stations . | . . . . . . . . Recycling Units . | . . . . . . . . Scanalyzers . | . . . . . . . . Garrison Access . | . . . . . . . . Data Cores Recovered 2 | . . . . . . 2 . Used . | . . . . . . . . Hacking Detections 101 | . 8 10 7 11 18 35 12 Full Trace Events 22 | . 1 . . 1 4 12 4 Feedback Events 2 | . . . . . . 1 1 Corruption 2 | . . . . . . 1 1 Feedback Blocked . | . . . . . . . . Robot Schematics Acquired 3 | . . . . . 2 1 . Robots Built 15 | . . . . . 7 6 2 Authchips . | . . . . . . . . Time 696 | . . . . . 384 178 134 Total Robot Build Rating 57 | . . . . . 25 24 8 Part Schematics Acquired 23 | . . 1 2 1 9 8 2 Parts Built 11 | . . . . . 4 4 3 Authchips . | . . . . . . . . Time 487 | . . . . . 252 89 146 Total Part Build Rating 53 | . . . . . 16 18 19 Parts Repaired 12 | . . 1 . 2 2 6 1 Time 502 | . . 32 . 51 36 307 76 Parts Recycled . | . . . . . . . . Recycled Matter . | . . . . . . . . Retrieved Matter . | . . . . . . . . Retrieved Components 1 | . 1 . . . . . . Parts Scanalyzed 15 | . . 1 . 2 6 6 . Part Schematics Acquired 12 | . . 1 . 1 5 5 . Parts Damaged . | . . . . . . . . Bothacking | -11 -10 -9 -9 -8 -7 -6 -5 ------------ Run | Jun Mat Mat Sto Mat Fac Fac Fac Used RIF Installer . | . . . . . . . . Robots Hacked . | . . . . . . . . Non-combat . | . . . . . . . . Combat . | . . . . . . . . Robot Hacks Applied . | . . . . . . . . Relay Couplers Released 3 | . . . . . . . 3 Machine Destruction 3 | . . . . . . . 3 Fabnet Peak Effective % . | . . . . . . . . Robots Rewired . | . . . . . . . . Allies Hacked 1 | . . . . . . 1 . Hacks Repelled . | . . . . . . . . Allies | -11 -10 -9 -9 -8 -7 -6 -5 -------- Run | Jun Mat Mat Sto Mat Fac Fac Fac Total Allies 17 | . . . . . 7 8 2 Largest Group 5 | . . . . . 5 5 2 Highest-Rated Group 143 | . . . . . 122 143 74 Highest-Rated Ally 37 | . . . . . 37 37 37 Total Orders 2 | . . . . . . 1 1 AID 1 | . . . . . . 1 . EXPLORE 1 | . . . . . . . 1 Ally Attacks 206 | . . . . . 13 174 19 Total Damage 4748 | . . . . . 222 4191 335 Kills 41 | . . . . . 3 35 3 Allies Corrupted . | . . . . . . . . Allies Melted . | . . . . . . . . Intel | -11 -10 -9 -9 -8 -7 -6 -5 ------- Run | Jun Mat Mat Sto Mat Fac Fac Fac Robot Analysis Total 2 | . 1 . . 1 . . . Derelict Logs Recovered . | . . . . . . . . Drone Launches 3 | . . . . . . . 3 Drone Recoveries 2 | . . . . . . . 2 Exploration | -11 -10 -9 -9 -8 -7 -6 -5 ------------- Run | Jun Mat Mat Sto Mat Fac Fac Fac Turns Passed 24568 | 43 1087 2169 1279 1586 4841 8716 4847 Spaces Moved 12961 | 32 571 1095 650 952 3326 4160 2175 Core 88 | 11 . . . . . . 77 Treads . | . . . . . . . . Legs 12178 | 21 571 1095 338 946 3326 4160 1721 Wheels 318 | . . . 312 6 . . . Hover 40 | . . . . . . . 40 Flight 337 | . . . . . . . 337 Fastest Speed 32 | 50 120 120 105 105 120 123 32 Average Speed 152 | 95 176 165 149 120 124 181 142 Slowest Speed 250 | 120 190 190 190 190 126 193 250 Overloaded Moves . | . . . . . . . . Propulsion Burnouts . | . . . . . . . . Robots Hopped . | . . . . . . . . Cave-ins Triggered 1 | . . . . . 1 . . Exploration Rate (%) 76 | 3 98 97 85 99 77 98 51 Regions Visited 7 Branch Regions 1 Pre-discovered Areas 1 | . . . 1 . . . . Known Exits Taken 7 | 1 1 1 1 1 1 1 . Unknown Exits Taken . | . . . . . . . . Scrap Searched . | . . . . . . . . Spaces Dug 34 | . . . 1 3 3 12 15 Terrain Destroyed 319 | . . . 3 13 98 72 133 Melee 8 | . . . 1 3 1 . 3 Projectile 128 | . . . 2 10 16 48 52 AOE 183 | . . . . . 81 24 78 Terrain Rammed . | . . . . . . . . Walls Destroyed . | . . . . . . . . Machines Disabled . | . . . . . . . . Actions | -11 -10 -9 -9 -8 -7 -6 -5 --------- Run | Jun Mat Mat Sto Mat Fac Fac Fac Total 15851 | 43 612 1288 794 1203 3776 4911 3224 Wait 1130 | . 2 68 14 80 192 380 394 Move 12954 | 31 570 1094 649 951 3325 4159 2175 Hop . | . . . . . . . . Pick Up 204 | 5 12 13 12 18 35 50 59 Fast Attach 24 | 2 . . . 4 4 3 11 Attach 92 | 5 1 6 2 2 8 11 57 Detach 9 | . . . . . . 1 8 Swap 196 | . 3 7 22 23 35 46 60 Drop 137 | . 2 9 9 23 32 37 25 Fire 1029 | . 22 89 77 94 125 214 408 Melee 24 | . . . 9 3 1 . 11 Ram . | . . . . . . . . Kick 11 | . . 2 . 5 1 2 1 Crush . | . . . . . . . . Escape Stasis 40 | . . . . . 18 7 15 Rewire 1 | . . . . . . 1 . Trap . | . . . . . . . . Miscellaneous . | . . . . . . . . Route ------- -11/Junkyard -10/Materials (discovered 4 exits: *Mat x3 / *Min) -9/Materials (discovered 7 exits: *Mat x3 / *Min x2 / *Sto x2) -9/Storage -8/Materials (discovered 3 exits: *Fac x3) -7/Factory (discovered 6 exits: *Fac x4 / *Low x2) -6/Factory (discovered 6 exits: *Fac x4 / *Low x2) -5/Factory (discovered 2 exits: *Fac x2) History --------- Turn | Location | Event 7 | -11/Junkyard | Identified exit to Materials 7 | -11/Junkyard | Discovered exit to Materials (range 15) 44 | -11/Junkyard | Entered Materials 44 | -10/Materials | Evolved 1 slot: Power x1 102 | -10/Materials | Identified exit to Materials 300 | -10/Materials | Build established: Hacker-Mutant 629 | -10/Materials | Identified exit to Mines 629 | -10/Materials | Discovered exit to Mines (range 7) 1131 | -10/Materials | Entered another Materials area 1131 | -9/Materials | Evolved 2 slots: Propulsion x1, Utility x1 1161 | -9/Materials | Identified exit to Storage 1161 | -9/Materials | Discovered exit to Storage (range 7) 1509 | -9/Materials | Repaired Imp. Aluminum Leg 1792 | -9/Materials | Discovered exit to Storage (range 6) 1928 | -9/Materials | Identified exit to Mines 1928 | -9/Materials | Discovered exit to Mines (range 6) 1975 | -9/Materials | Identified exit to Materials 1975 | -9/Materials | Discovered exit to Materials (range 16) 2310 | -9/Materials | Discovered exit to Materials (range 12) 2558 | -9/Materials | Lost 3 parts (2n1u) 2813 | -9/Materials | Discovered exit to Materials (range 10) 3300 | -9/Materials | Entered Storage 3373 | -9/Storage | Garrison activated, responded to threat 3457 | -9/Storage | Destroyed 9 combat bots 3918 | -9/Storage | Discovered exit to Materials (range 7) 4469 | -9/Storage | Learned location of Armory (-3) 4579 | -9/Storage | Entered Materials 4579 | -8/Materials | Evolved 2 slots: Propulsion x1, Utility x1 4706 | -8/Materials | Repaired Med. Armor Plating 4985 | -8/Materials | Identified exit to Factory 4985 | -8/Materials | Discovered exit to Factory (range 10) 5328 | -8/Materials | Garrison activated, responded to threat 5605 | -8/Materials | Repaired Carbon-fiber Leg 5745 | -8/Materials | Discovered exit to Factory (range 15) 6130 | -8/Materials | Discovered exit to Factory (range 10) 6165 | -8/Materials | Entered Factory 6165 | -7/Factory | Evolved 2 slots: Propulsion x1, Utility x1 6350 | -7/Factory | Fabricated Imp. Cooling System (x1) 6435 | -7/Factory | Fabricated Imp. Cooling System? 7809 | -7/Factory | Fabricated System Restoration Module? 7925 | -7/Factory | Repaired Imp. Medium Armor Plating 8362 | -7/Factory | Identified exit to Factory 8362 | -7/Factory | Discovered exit to Factory (range 3) 8723 | -7/Factory | Identified exit to Lower Caves 8723 | -7/Factory | Discovered exit to Lower Caves (range 4) 8723 | -7/Factory | Discovered exit to Lower Caves (range 14) 8989 | -7/Factory | Discovered exit to Factory (range 12) 9150 | -7/Factory | Discovered exit to Factory (range 15) 9897 | -7/Factory | Discovered exit to Factory (range 15) 9967 | -7/Factory | Crushed by falling debris 10039 | -7/Factory | Fabricated P-60 Hacker? 10051 | -7/Factory | Found Powered Armor 10105 | -7/Factory | Repaired Imp. Carbon-fiber Leg 10765 | -7/Factory | Fabricated P-60 Hacker? 10934 | -7/Factory | Fabricated G-47 Trooper? 11006 | -7/Factory | Entered another Factory area 11006 | -6/Factory | Accompanied by 5 allies 11006 | -6/Factory | Evolved 2 slots: Propulsion x1, Utility x1 11236 | -6/Factory | Build established: Commander-Mutant 11488 | -6/Factory | Identified exit to Lower Caves 11488 | -6/Factory | Discovered exit to Lower Caves (range 16) 11700 | -6/Factory | Identified exit to Factory 11700 | -6/Factory | Discovered exit to Factory (range 16) 11736 | -6/Factory | Build established: Hacker-Mutant 12024 | -6/Factory | Fabricated P-60 Hacker? 12995 | -6/Factory | Discovered exit to Factory (range 10) 13517 | -6/Factory | Garrison activated, responded to threat 13624 | -6/Factory | Repaired System Restoration Module? 13847 | -6/Factory | Discovered exit to Factory (range 13) 13850 | -6/Factory | Fabricated P-60 Hacker? 14682 | -6/Factory | Fabricated P-60 Hacker? 14833 | -6/Factory | Spotted B-75 Beast 14859 | -6/Factory | Allies destroyed B-75 Beast 15078 | -6/Factory | Hacker 5d assimilated hostile G-50 Soldier 15528 | -6/Factory | Repaired Fission Core 15573 | -6/Factory | Repaired Imp. Carbon-fiber Leg 15866 | -6/Factory | Fabricated Matter Filter? 16138 | -6/Factory | Discovered exit to Lower Caves (range 9) 16506 | -6/Factory | Repaired Force Field 16623 | -6/Factory | Fabricated Imp. System Restoration Module (x2) 17077 | -6/Factory | Discovered exit to Factory (range 12) 17127 | -6/Factory | Repaired Imp. System Restoration Module 18616 | -6/Factory | Repaired Force Field 19722 | -6/Factory | Entered another Factory area 19722 | -5/Factory | Evolved 2 slots: Propulsion x1, Utility x1 19956 | -5/Factory | Repaired Structural Scanner 20623 | -5/Factory | Cargo convoy interrupted 20806 | -5/Factory | Lost 6 parts (2p1n2u1w) 21543 | -5/Factory | Garrison activated, responded to threat 21730 | -5/Factory | Destroyed 8 combat bots 21813 | -5/Factory | Identified exit to Factory 21813 | -5/Factory | Discovered exit to Factory (range 16) 21814 | -5/Factory | Lost 3 parts (2n1u) 21940 | -5/Factory | Build established: Scavenger-Mutant 22383 | -5/Factory | Fabricated Exp. Flexi-carbon Leg? 22459 | -5/Factory | Fabricated Neutrino Core (x2) 23080 | -5/Factory | Fabricated P-60 Hacker? 23113 | -5/Factory | Build established: Hacker-Skirmisher 23588 | -5/Factory | Discovered exit to Factory (range 16) 23679 | -5/Factory | Released all parts (6) 23709 | -5/Factory | Lost 13 parts (1p6n4u2w) 23774 | -5/Factory | Build established: Hacker-Mutant 23788 | -5/Factory | Core integrity fell below 50% 23802 | -5/Factory | Spotted B-75 Beast 23972 | -5/Factory | Lost 7 parts (1p3n2u1w) 24043 | -5/Factory | System corruption reached 10% 24062 | -5/Factory | Core integrity fell below 20% 24372 | -5/Factory | Build established: Scavenger-Mutant 24569 | -5/Factory | Destroyed by G-50 Soldier with Heavy Laser Last Messages --------------- 24518_ R-10 Processor collects Sml. Matter Pod. 24520_ System corrupted: Component data lost. 24521_ W-25 Informer distress signal alerts nearby ally. 24522_ R-10 Processor collects Wheel. 24525_ Carbon-fiber Leg destroyed. 24529_ Hpw. Shock Rifle destroyed. 24532_ G-50 Soldier destroyed. 24536_ R-10 Processor collects Adv. Heat Sink. 24537_ System corrupted: Heat flow error (+291). 24539_ Acquired Carbon-fiber Leg. 24540_ R-10 Processor collects Hvy. Laser. 24544_ System corrupted: Variable Charge Gun failed to cycle. 24550_ Imp. Thermal Generator destroyed. 24552_ Antigrav System destroyed. 24556_ Carbon-fiber Leg destroyed. 24557_ System corrupted: Component data lost. 24558_ G-50 Soldier destroyed. 24562_ R-10 Processor collects Lgt. Angular Momentum Engine. 24562_ Critical hit (Burn: +37). 24564_ U-05 Engineer builds a Door. Map ----- +----------------------------------------------------+ | #######! """ #???????????## """ """ # | | ## # """ #???????????##% """ """ # | | ## # !] #???????????## # | | ## # !] """ #???????????## """ """ / | | ## # ! """ #???????????## """ """ # | | ## # """ #???????????## """ """ # | | ## # #???????????## # | | ## ! # #???????????## + | | ## #| #???????????## # | | #####? #################????????##+############ | | ########+#### #???????### | | / """ #??????? ## | | ## #### """ #?????" # | | ?# !!#??# """ #????"" + | | ?# !!#??# #??????? # | | ?# #??# ! #??????? # ########## | | ?# |[[ # ####+###+#######?????? #% # + | | ?# |[ # # # #???????????### # """ # | | ?# [[ # #### #???????????### # """ # | | ?# # %% % #????????###### # """ + | | ?# # % ########## # # # | | ?# ! %% % ####### # # | | ?# ! !! % ^R % A #?##### " #%# | | ?# " ! %% "" """gg #????## "R #%# | | ?#### "G!!%!* "" ""%% #????## """ # # | | ####### "%! % ""%""%%@u ################%# | | # !%%% %%%"%" u##############"###### % | | #% %]=% % u%% # # | | ^ % % u % + % """ # ######## | | < ^ % %######## # """ # ########### | | #?????## # * """ # ##????##### | | %""+"####???????# # # ##????????? | | # [??????????# ############ ##????????? | | # ### ????#######+##;######### ## ##????????? | | ? #?# ????# #???## ### ##????????? | | ?? #?? ""?????# #???###### ##????????? | | ??? #??????????# """""" #???###### ##????????# | | ????#??????????# """""" #??????### ##????????# | | ???????????????# """""" #??????### ####??????# | | ???????????????# """""" #??????### ####??????? | | ???????????????# #??????### #=##??????? | | ???????????????# """ #??????### ####??????? | | ???????????????# """ #???????## ####??????? | | # ############ """ #????##### #####?????? | | ############ #????#####+#####?????? | | ## # ####### !##?????? | | ## """ """ #+#+################ % ##?????? | | ## """ """ # # !######## | | ###### """ """ + # """ ######## | | ## # # """ ## | +----------------------------------------------------+ Best States ------------- Heat Dissipation 71 Energy Generation 33 Energy Capacity 530 Matter Stores 300 Matter Capacity 300 Sight Range 16 Robot Scan Range 16 Terrain Scan Density 10 Additional Mass Support 9 Armor Coverage 625 Resistance: KI 60 Resistance: TH 35 Resistance: EX 35 Resistance: EM 35 Resistance: I 35 Resistance: S 35 Resistance: P 35 Evasion (%) 63 Targeting Accuracy 20 Matter Filtering 30 Energy Filtering 50 Kinecelleration 40 Offensive Hacking 32 Defensive Hacking 10 Item Schematics ----------------- Med. Armor Plating | -9/Materials | Scanalyzed Mni. Grenade Launcher | -9/Storage | Hacked Imp. Cooling System | -9/Storage | Hacked Matter Filter | -8/Materials | Scanalyzed System Restoration Module | -7/Factory | Scanalyzed Adv. Weight Redist. System | -7/Factory | Scanalyzed Adv. Targeting Computer | -7/Factory | Scanalyzed Kinecellerator | -7/Factory | Scanalyzed Imp. Field Recycling Unit | -7/Factory | Scanalyzed Imp. Kinecellerator | -7/Factory | Hacked Imp. System Restoration Module | -7/Factory | Hacked Imp. Titanium Leg | -7/Factory | Hacked Triangulator | -7/Factory | Hacked Titanium Leg | -6/Factory | Scanalyzed Enh. Nuclear Core | -6/Factory | Scanalyzed Neutrino Core | -6/Factory | Hacked Point Defense Array | -6/Factory | Hacked Adv. Sensor Array | -6/Factory | Scanalyzed Imp. System Guard | -6/Factory | Hacked Imp. Hacking Suite | -6/Factory | Scanalyzed System Shield | -6/Factory | Scanalyzed Biometal Leg | -5/Factory | Hacked Antigrav Array | -5/Factory | Hacked Robot Schematics ------------------ P-60 Hacker | -7/Factory | Hacked G-47 Trooper | -7/Factory | Hacked R-10 Processor | -6/Factory | Hacked Fabricated ------------ Imp. Cooling System | x1 | -7/Factory Imp. Cooling System | x1 | -7/Factory System Restoration Module | x2 | -7/Factory P-60 Hacker | x2 | -7/Factory P-60 Hacker | x2 | -7/Factory G-47 Trooper | x3 | -7/Factory P-60 Hacker | x2 | -6/Factory P-60 Hacker | x2 | -6/Factory P-60 Hacker | x2 | -6/Factory Matter Filter | x2 | -6/Factory Imp. System Restoration Module | x2 | -6/Factory Exp. Flexi-carbon Leg | x1 | -5/Factory | Preloaded Neutrino Core | x2 | -5/Factory P-60 Hacker | x2 | -5/Factory Alien Tech Used ----------------- None Achievements -------------- None Challenges ------------ None Game ------ Seed CoilControlInterpreter Manual? 0 Play Time 04:54:52 Cumulative 141.9 hours Start 2023.07.20 @ 07:09:21 End 2023.07.29 @ 00:19:26 Sessions 17 Manual Loads 0 Difficulty Explorer Special Mode None Game No. 124 Rogue 0 Adventurer 102 Explorer 22 Win Type - Total 0 Types 0/0/0/0/0/0/0/0/0 Lore% 45 Gallery% 57 Achievement% 44 Wizard Run 0 Options --------- ASCII 0 Keyboard 0 Movement Mouse Keybinds 0 Fullscreen 1 Font 18/SmallcapsGlow Map View 112x50 Tactical HUD 1 Map Filters NONE Filters NONE Steam 1 RUN: 67d7f535-72a9-4077-bf92-3601221cacff